Cogmind - Beta 13 *** ADVENTURER MODE // 2024.03.03 @ 00:08:22 Player: satan5 Result: Destroyed by P-80 Master with Gamma Rifle Performance ------------- Evolutions (7) 3500 Regions Visited (11) 2200 Robots Destroyed (172) 860 Value Destroyed (6337) 6337 Prototype IDs (27) 540 Alien Tech Used (0) 0 Bonus (851) 851 TOTAL SCORE: 14288 Bonus ------- Follower Combat Kills 265 Entered DSFs 500 Aligned with FarCom 300 Friendly Fire -214 Cogmind --------- Core Integrity 0/1300 Matter 154/300 Energy 98/100 System Corruption 24% Temperature Cool (0) Movement Core (50) Location -3/Research Parts ------- > --- POWER (2) -------- (None) > --- PROPULSION (6) --- (None) > --- UTILITY (9) ------ Advanced Target Analyzer Advanced Target Analyzer Core Analyzer > --- WEAPON (4) ------- (None) > --- INVENTORY (5) ---- Xenon Bombardment Thruster Experimental Terrain Scanner Heavy Machine Gun Improved Datajack Peak State ------------ > --- POWER ------------ Hybrid Antimatter Reactor Particle Reactor > --- PROPULSION ------- Heavy Treads Heavy Treads Improved Heavy Treads > --- UTILITY ---------- Experimental Cooling System Large Storage Unit Experimental Signal Interpreter Core Analyzer Improved Weapon Cycler Experimental Focal Shield Hacking Suite System Shield Advanced Corruption Screen > --- WEAPON ----------- Improved Arc Projector Improved Arc Projector Improved Arc Projector Gamma Rifle > --- INVENTORY -------- Hybrid Antimatter Reactor Particle Reactor Biometal Medium Treads Advanced Cryofiber Web Energy Well Experimental Terrain Scanner Improved Heavy Armor Plating Improved Trap Extractor Gamma Rifle Proton Cannon Gamma Bomb Array Tactical Quantum Warhead Improved Datajack Heavy Flail [Rating: 138] Favorites ----------- Power Ion Engine Engine Ion Engine Power Core Fission Core Reactor Hybrid Antimatter Reactor Propulsion Improved Heavy Treads Treads Improved Heavy Treads Leg Aluminum Leg Hover Unit Improved Antigrav System Utility Large Storage Unit Device Experimental Terrain Scanner Storage Large Storage Unit Processor Experimental Signal Interpreter Hackware System Shield Protection Centrium Light Armor Plating Weapon EM Pulse Gun Energy Gun EM Pulse Gun Energy Cannon Improved EM Pulse Cannon Ballistic Gun Coil Gun Ballistic Cannon Heavy Hardcell Cannon Launcher Gamma Bomb Array Special Weapon Remote Datajack Impact Weapon Heavy Flail Special Melee Weapon Datajack Build | -11 -10 -10 -10 -9 -8 -7 -6 -5 -4 -4 -3 ------- Run | Yrd Mat Min Exi Min Mat Fac Fac Fac Fac DSF Res Slots Evolved 14 | . . . . . 4 2 2 2 2 . 2 Power 1 | . . . . . . 1 . . . . . Propulsion 4 | . . . . . 2 . . . 2 . . Utility 7 | . . . . . 2 1 1 2 . . 1 Weapon 2 | . . . . . . . 1 . . . 1 Parts Attached 175 | 6 2 2 1 4 4 7 44 18 1 4 82 Power 20 | 1 . . . . . . 5 2 . . 12 Engine 3 | 1 . . . . . . 2 . . . . Core 7 | . . . . . . . 3 2 . . 2 Reactor 10 | . . . . . . . . . . . 10 Propulsion 20 | 2 . . 1 . . . 3 2 1 . 11 Treads 9 | . . . . . . . 3 2 1 . 3 Leg 7 | 2 . . 1 . . . . . . . 4 Wheel . | . . . . . . . . . . . . Hover 4 | . . . . . . . . . . . 4 Flight . | . . . . . . . . . . . . Utility 49 | 1 1 . . 2 . 4 8 7 . 4 22 Device 29 | . . . . 1 . 1 5 4 . 3 15 Storage 3 | 1 . . . 1 . 1 . . . . . Processor 8 | . 1 . . . . . 2 . . . 5 Hackware 3 | . . . . . . . . 2 . . 1 Protection 6 | . . . . . . 2 1 1 . 1 1 Artifact . | . . . . . . . . . . . . Weapon 86 | 2 1 2 . 2 4 3 28 7 . . 37 Energy Gun 45 | 2 1 1 . 1 3 2 14 1 . . 20 Energy Cannon 11 | . . . . . . . 2 4 . . 5 Ballistic Gun 4 | . . . . . . 1 1 . . . 2 Ballistic Cannon 3 | . . . . . . . 2 . . . 1 Launcher 10 | . . . . . 1 . 4 1 . . 4 Special Weapon 3 | . . . . . . . 3 . . . . Impact Weapon 7 | . . . . . . . 1 1 . . 5 Slashing Weapon . | . . . . . . . . . . . . Piercing Weapon . | . . . . . . . . . . . . Special Melee Weapon 3 | . . 1 . 1 . . 1 . . . . Unidentified Prototypes 22 | . . . . . . 1 12 2 . . 7 Corrupted Parts 2 | . . . . 1 1 . . . . . . System Corruption 6 | . . . . 3 3 . . . . . . Parts Lost 65 | . . . . . . . 16 4 . . 45 Power 9 | . . . . . . . 4 . . . 5 Propulsion 15 | . . . . . . . 2 1 . . 12 Utility 14 | . . . . . . . 2 1 . . 11 Weapon 27 | . . . . . . . 8 2 . . 17 Highest Loss Streak 16 | . . . . . . . 5 2 . . 16 To Critical Strikes 2 | . . . . . . . 1 . . . 1 Average Slot Usage (%) 78 | . 89 100 100 100 60 57 76 84 84 79 73 Engine 5 | . 14 14 14 14 9 7 6 2 . . . Core 2 | . . . . . . . 5 8 10 10 . Reactor 1 | . . . . . . . . . . . 6 Treads 6 | . . . . . . . 10 10 15 15 8 Leg 8 | . 28 28 28 28 18 15 2 . . . 1 Device 9 | . . . . 10 7 . 10 19 21 13 13 Storage 8 | . 14 14 14 14 9 7 10 5 5 5 2 Processor 6 | . 3 14 14 3 . . 6 5 5 5 8 Hackware 3 | . . . . . . . . 7 10 10 10 Protection 3 | . . . . . . 11 6 3 . 3 . Energy Gun 12 | . 28 28 28 27 17 14 10 5 . . 9 Energy Cannon 2 | . . . . . . . . 10 15 15 3 Ballistic Cannon 1 | . . . . . . . 3 . . . . Naked Turns . | . . . . . . . . . . . . Heaviest Build 94 | 14 14 14 14 32 34 48 81 76 74 85 94 Greatest Support 215 | 20 20 20 25 25 25 25 150 150 215 215 215 Greatest Overweight (x) 10 | . . . . 1 1 1 3 1 . . 10 Average Overweight (x) . | . . . . . 1 1 . . . . . Largest Inventory Capacity 15 | 8 8 8 8 15 15 15 15 15 15 15 15 Average Capacity 13 | 6 8 8 8 14 15 15 15 15 15 15 12 Most Carried 15 | 5 8 8 8 11 13 15 15 15 10 15 15 Average Carried 11 | 2 6 7 7 9 11 13 13 13 10 13 11 Final Capacity 15 | 8 8 8 8 15 15 15 15 15 15 15 5 Final Carried 15 | 3 7 8 8 10 12 15 14 12 10 15 4 Class Distribution -------------------- 32% | Mutant 26% | Skirmisher 21% | Hacker-Skirmisher 11% | Hacker-Gunner 6% | Hacker-Mutant Dominant Class ---------------- Mutant | -10/Materials Mutant | -10/Mines Mutant | -10/Exiles Mutant | -9/Mines Mutant | -8/Materials Mutant | -7/Factory Skirmisher | -6/Factory Hacker-Skirmisher | -5/Factory Hacker-Skirmisher | -4/Factory Hacker-Skirmisher | -4/DSF Hacker-Gunner | -3/Research Resources | -11 -10 -10 -10 -9 -8 -7 -6 -5 -4 -4 -3 ----------- Run | Yrd Mat Min Exi Min Mat Fac Fac Fac Fac DSF Res Matter Collected 3522 | 260 20 20 . 70 63 68 1205 312 . 53 1451 Remotely . | . . . . . . . . . . . . Salvage Created 8040 | 85 250 160 . 51 346 125 2031 727 . 787 3478 Parts 432 | 3 22 10 . . 12 12 95 36 . 33 209 Haulers Intercepted 15 | . 1 . . . . . 5 . . 1 8 Recyclers Shooed 3 | . . . . . 1 . . . . . 2 Parts Field Recycled . | . . . . . . . . . . . . Retrieved Matter . | . . . . . . . . . . . . Parts Self-Destructed . | . . . . . . . . . . . . Prevented . | . . . . . . . . . . . . Kills | -11 -10 -10 -10 -9 -8 -7 -6 -5 -4 -4 -3 ------- Run | Yrd Mat Min Exi Min Mat Fac Fac Fac Fac DSF Res Combat Hostiles Destroyed 94 | . 6 5 . . 4 2 32 8 . 7 30 Guns 29 | . 6 5 . . 2 1 7 2 . . 6 Cannons 31 | . . . . . . . 14 1 . 5 11 AOE 17 | . . . . . . . 7 3 . . 7 Classes Destroyed 17 | 1 4 1 . 1 2 1 4 1 . 2 . Worker 17 | . . . . . . . 6 2 . . 9 Builder 15 | . . . . . . . 5 2 . . 8 Tunneler 4 | . 1 . . . . . 3 . . . . Hauler 15 | . 1 . . . . . 5 . . 1 8 Recycler 7 | 1 . 1 . . . . 1 2 . . 2 Operator 1 | . . . . . . . . 1 . . . Watcher 17 | . 3 . . . 3 . 5 2 . . 4 Swarmer 21 | . 6 3 . . . . 6 4 . . 2 Grunt 23 | . . . . . 2 . 14 . . 3 4 Brawler 2 | . . . . . . . 2 . . . . Duelist 3 | . . . . . 1 . 2 . . . . Sentry 10 | . . . . . 1 1 4 2 . . 2 Demolisher 2 | . . 2 . . . . . . . . . Specialist 3 | . . . . . . . . . . 3 . Hunter 10 | . . . . . . . 2 . . . 8 Programmer 20 | . . . . . . 1 3 2 . . 14 Heavy 1 | . . . . . . . . . . 1 . Thug 1 | . . . . 1 . . . . . . . Best Kill Streak 14 | 1 4 4 . . 3 1 6 4 . 7 14 Combat Bots Only 6 | . 3 3 . . 3 1 5 3 . 6 5 Max Kills in Single Turn 4 | 1 1 2 . 1 1 1 4 3 . 1 4 Gunslinging 1 | . . 1 . . . . . . . . . Exploded 2 | . . . . . . . 1 2 . . 2 Melee . | . . . . . . . . . . . . Uniques/NPCs Destroyed . | . . . . . . . . . . . . Combat | -11 -10 -10 -10 -9 -8 -7 -6 -5 -4 -4 -3 -------- Run | Yrd Mat Min Exi Min Mat Fac Fac Fac Fac DSF Res Hostile Shots Fired 947 | . 19 7 . . 19 62 289 36 . 29 486 Missed 258 | . 9 2 . . 5 24 83 9 . 2 124 Damage Taken 11528 | . 94 56 . 38 172 340 2960 511 . 595 6762 Core 1772 | . 14 5 . 22 24 38 311 16 . 34 1308 Absorbed by Shields . | . . . . . . . . . . . . Reduced by Siege Mode 259 | . . . . . . . 58 . . 31 170 Ignored by Resistances 3177 | . 28 17 . 10 48 108 802 141 . 161 1862 Regen/Repaired (Parts) 541 | . . . . . . . . 541 . . . Core Remaining (%) 90 | 100 . . . 83 95 94 63 98 . 97 . Volleys Fired 359 | 1 16 6 . 1 16 17 135 19 . 16 132 Largest 4 | 2 2 2 . 2 2 2 3 3 . 3 4 Hottest 305 | 90 80 80 . 80 100 100 169 225 . 225 305 Shots Fired 838 | 2 32 12 . 3 31 31 265 50 . 48 364 Gun 539 | 2 32 12 . 3 30 31 162 15 . . 252 Cannon 263 | . . . . . . . 84 34 . 48 97 Launcher 24 | . . . . . 1 . 7 1 . . 15 Special 12 | . . . . . . . 12 . . . . Kinetic 161 | . . . . . . 3 78 . . . 80 Thermal 4 | 1 . . . . . . 2 . . . 1 Explosive 9 | . . . . . 1 . 7 1 . . . Electromagnetic 652 | 1 32 12 . 3 30 28 166 49 . 48 283 Robot Hit Streak 36 | 1 9 10 . 8 18 11 33 23 . 27 36 Robot Miss Streak 4 | . 1 1 . . 3 4 3 1 . 1 3 Penetration Max 1 | . . . . . . . . . . . 1 Secondary Targets 2 | . 1 1 . . . . . . . . . Max Gunslinging Chain 1 | . 1 1 . . . . . . . . . Shots Hit Robots 683 | 1 23 9 . 4 21 25 216 33 . 37 314 Core Hits 365 | 1 11 7 . 2 5 10 96 23 . 16 194 Critical Kills 2 | . . . . . . . . . . . 2 Critical Parts Destroyed 6 | . . . . . . . . . . . 6 Critical Strikes 30 | . 2 . . . 1 . 5 . . 1 21 Destroy 5 | . . . . . . . . . . . 5 Blast 11 | . . . . . . . 4 . . . 7 Corrupt 11 | . 2 . . . 1 . 1 . . 1 6 Smash 3 | . . . . . . . . . . . 3 Melee Attacks 35 | . . . . 1 . . 7 2 . . 25 Impact 32 | . . . . . . . 5 2 . . 25 Slashing . | . . . . . . . . . . . . Piercing . | . . . . . . . . . . . . Sneak Attacks 5 | . . . . 1 . . 3 . . . 1 Combat Hostiles 4 | . . . . . . . 3 . . . 1 Follow-up Attacks . | . . . . . . . . . . . . Damage Inflicted 19344 | 15 379 119 . 36 390 463 7547 1428 . 1034 7933 Guns 6300 | 15 315 119 . 36 390 313 2127 341 . . 2644 Cannons 8018 | . . . . . . . 4040 569 . 1034 2375 Explosions 4141 | . 64 . . . . 150 1226 518 . . 2183 Melee 862 | . . . . . . . 154 . . . 708 Ramming 23 | . . . . . . . . . . . 23 Kinetic 6014 | . . . . . . 78 3922 . . . 2014 Thermal 2189 | . 64 . . . . 150 423 407 . . 1145 Explosive 967 | . . . . . . . 856 111 . . . Electromagnetic 9289 | 15 315 119 . 36 390 235 2192 910 . 1034 4043 Impact 862 | . . . . . . . 154 . . . 708 Slashing . | . . . . . . . . . . . . Piercing . | . . . . . . . . . . . . Highest Corruption 24 | . . . . 3 3 . 6 3 . 4 24 Average Corruption 8 | . . . . 3 3 . 3 2 . 2 13 Corruption Purged . | . . . . . . . . . . . . Corruption Blocked 3 | . . . . . . . . . . . 3 Effects 139 | . . . . 2 5 . 12 5 . 4 111 Message Errors 31 | . . . . 1 . . 2 2 . 1 25 Matter Fused 26 | . . . . . 2 . 4 1 . 2 17 Heat Flow Errors 15 | . . . . . . . 1 1 . . 13 Energy Discharges 12 | . . . . . 2 . 1 . . . 9 Parts Rejected 1 | . . . . . . . . . . . 1 Data Loss (minor) 21 | . . . . . 1 . 2 1 . 1 16 Data Loss (major) 6 | . . . . . . . 1 . . . 5 Misfires 10 | . . . . 1 . . 1 . . . 8 Alerts 2 | . . . . . . . . . . . 2 Misdirections 9 | . . . . . . . . . . . 9 Weapon Failures 6 | . . . . . . . . . . . 6 Overload Shots . | . . . . . . . . . . . . Overflow Damage 1221 | . . . . . . 16 724 93 . . 388 Projectiles 672 | . . . . . . . 610 9 . . 53 Explosions 204 | . . . . . . 16 61 84 . . 43 Melee 345 | . . . . . . . 53 . . . 292 Knockbacks 20 | . . . . . . . 10 . . . 10 Impact 5 | . . . . . . . . . . . 5 Kinetic 15 | . . . . . . . 10 . . . 5 Secondary . | . . . . . . . . . . . . Self-Inflicted Damage 431 | . 30 . . . . . 31 20 . . 350 Shots 28 | . 1 . . . . . 1 1 . . 25 Rammed . | . . . . . . . . . . . . Targets Rammed 6 | . . . . . . . . . . . 6 Kicked 6 | . . . . . . . . . . . 6 Crushed . | . . . . . . . . . . . . Highest Temperature 715 | 30 90 36 . 18 141 264 508 246 . 198 715 Average Temperature 131 | 18 34 20 . 9 53 94 118 81 . 85 205 Received Heat Transfer 1340 | . . . . . 135 48 417 9 . 45 686 Effects 44 | . . . . . . . 17 . . . 27 Shutdowns 9 | . . . . . . . 7 . . . 2 Energy Bleed 5 | . . . . . . . 4 . . . 1 Interference 8 | . . . . . . . 3 . . . 5 Matter Decay 5 | . . . . . . . 1 . . . 4 Short Circuit 3 | . . . . . . . 1 . . . 2 Damage (minor) 3 | . . . . . . . . . . . 3 Damage (major) 10 | . . . . . . . . . . . 10 Damage (core) 1 | . . . . . . . 1 . . . . Siege Activations 10 | . . . . . . . 4 1 . 2 3 Total Turns 203 | . . . . . . . 76 3 . 34 90 Longest Duration 34 | . . . . . . . 26 3 . 25 34 Robots Corrupted 19 | . . . . . 2 1 5 2 . 2 7 Combat Hostiles 16 | . . . . . 2 1 4 2 . 2 5 Parts Fried 103 | . 3 . . . 6 1 16 15 . 16 46 Impact Corruptions 17 | . . . . . . . 2 . . . 15 Robots Melted . | . . . . . . . . . . . . Combat Hostiles . | . . . . . . . . . . . . Parts Melted 2 | . . . . . . . 2 . . . . Heat Transferred 1974 | . 150 . . . . 200 324 250 . . 1050 Parts Sabotaged . | . . . . . . . . . . . . Parts Stolen . | . . . . . . . . . . . . Parts Stripped . | . . . . . . . . . . . . Power Chain Reactions 17 | . 1 . . . . 1 2 1 . . 12 Alert | -11 -10 -10 -10 -9 -8 -7 -6 -5 -4 -4 -3 ------- Run | Yrd Mat Min Exi Min Mat Fac Fac Fac Fac DSF Res Peak Influence 425 | 5 221 123 . 55 132 99 425 277 . 189 353 Initial 92 | . 2 23 . . . 33 . 70 . . 92 Average 110 | 1 125 86 . 11 64 49 156 89 . 98 130 Maximum Alert Level 2 | . 1 . . . . . 2 1 . . 1 Low Security (%) 85 | 100 72 100 . 100 100 100 66 92 100 100 89 Level 1 14 | . 27 . . . . . 33 7 . . 10 Level 2 . | . . . . . . . . . . . . Level 3 . | . . . . . . . . . . . . Level 4 . | . . . . . . . . . . . . Level 5 . | . . . . . . . . . . . . High Security . | . . . . . . . . . . . . Max Security . | . . . . . . . . . . . . Squads Dispatched 30 | . . 1 . . 1 . 14 1 . 2 11 Investigation 5 | . . . . . 1 . 3 . . . 1 Extermination 12 | . . . . . . . 5 1 . . 6 Reinforcement 10 | . . . . . . . 4 . . 2 4 Assault 2 | . . 1 . . . . 1 . . . . Garrison 1 | . . . . . . . 1 . . . . Intercept . | . . . . . . . . . . . . Searches Triggered . | . . . . . . . . . . . . Construction Impeded 4 | . . . . . . . 2 . . . 2 Haulers Reinforced 2 | . . . . . . . 1 . . . 1 Active Scanning Responses . | . . . . . . . . . . . . Cargo Convoy Interrupts 1 | . . . . . . . 1 . . . . Stealth | -11 -10 -10 -10 -9 -8 -7 -6 -5 -4 -4 -3 --------- Run | Yrd Mat Min Exi Min Mat Fac Fac Fac Fac DSF Res Distress Signals 3 | . . . . . . . 1 . . . 2 Communications Jammed 41 | . . . . . . . . . . . 41 Distress Signals 41 | . . . . . . . . . . . 41 Times Spotted 160 | . 9 9 . 2 11 3 55 12 . 7 52 Peak Tracking Total 11 | . 3 4 . 2 3 1 6 5 . 3 11 Tactical Retreats 7 | . . . . . 1 . 1 1 . 1 3 Traps | -11 -10 -10 -10 -9 -8 -7 -6 -5 -4 -4 -3 ------- Run | Yrd Mat Min Exi Min Mat Fac Fac Fac Fac DSF Res Traps Triggered 8 | . . . . 2 . . 3 1 . . 2 Indirectly . | . . . . . . . . . . . . Trap Hack Attempts . | . . . . . . . . . . . . Triggered . | . . . . . . . . . . . . Disarmed . | . . . . . . . . . . . . Reprogrammed . | . . . . . . . . . . . . Reused . | . . . . . . . . . . . . Traps Extracted 4 | . . . . 4 . . . . . . . Installed . | . . . . . . . . . . . . Triggered 3 | . . . . . 2 . . . . . 1 Most Traps Carried 4 | . . . . 4 4 4 . . . . . Machines | -11 -10 -10 -10 -9 -8 -7 -6 -5 -4 -4 -3 ---------- Run | Yrd Mat Min Exi Min Mat Fac Fac Fac Fac DSF Res Machines Disabled 20 | . 1 . . . 2 . 8 6 . 1 2 Max in Single Turn 4 | . 1 . . . 1 . 4 3 . 1 1 Garrison Access 3 | . . . . . . . 1 1 . . 1 Machines Repaired . | . . . . . . . . . . . . Machines Dismantled . | . . . . . . . . . . . . Machines Sabotaged . | . . . . . . . . . . . . Overloaded Fab Kills . | . . . . . . . . . . . . Hacking | -11 -10 -10 -10 -9 -8 -7 -6 -5 -4 -4 -3 --------- Run | Yrd Mat Min Exi Min Mat Fac Fac Fac Fac DSF Res Machines Accessed 45 | . 6 . 4 1 4 4 8 7 2 . 9 Terminals 23 | . 5 . . . 2 2 5 5 1 . 3 Fabricators 2 | . . . . . . . 1 . . . 1 Repair Stations 4 | . . . . . . 2 . 1 . . 1 Recycling Units 3 | . 1 . . . . . . . 1 . 1 Scanalyzers 5 | . . . . . 2 . 1 . . . 2 Garrison Access 3 | . . . . . . . 1 1 . . 1 Total Hacks 150 | . 19 . 49 1 12 9 17 17 3 . 23 Successful 96 | . 8 . 49 1 8 3 8 8 2 . 9 Failed 54 | . 11 . . . 4 6 9 9 1 . 14 Catastrophic 23 | . 4 . . . 2 1 6 5 . . 5 Database Lockouts . | . . . . . . . . . . . . Manual 22 | . 10 . 1 . 1 . 5 3 . . 2 Terminals 54 | . 15 . . . 4 5 10 12 2 . 6 Fabricators 4 | . . . . . . . 3 . . . 1 Repair Stations 12 | . . . . . . 4 . 4 . . 4 Recycling Units 7 | . 4 . . . . . . . 1 . 2 Scanalyzers 20 | . . . . . 8 . 3 . . . 9 Garrison Access 3 | . . . . . . . 1 1 . . 1 Terminal Hacks 70 | . 7 . 49 1 . 1 6 3 1 . 2 Record 49 | . . . 49 . . . . . . . . Robot Analysis 1 | . 1 . . . . . . . . . . Prototype ID Bank 4 | . 3 . . . . . . . . . 1 Open Door 1 | . . . . 1 . . . . . . . Open DSF 1 | . . . . . . . . . 1 . . Branch Access Points 1 | . 1 . . . . . . . . . . Unreport Threat 7 | . 1 . . . . 1 2 3 . . . Locate Traps 1 | . . . . . . . 1 . . . . Recall Extermination 1 | . . . . . . . 1 . . . . Recall Reinforcements 1 | . . . . . . . 1 . . . . Hauler Manifests 2 | . 1 . . . . . . . . . 1 Zone Layout 1 | . . . . . . . 1 . . . . Fabricator Hacks . | . . . . . . . . . . . . Repair Station Hacks 6 | . . . . . . 2 . 3 . . 1 Scan Component 5 | . . . . . . 2 . 2 . . 1 Repair 1 | . . . . . . . . 1 . . . Recycling Unit Hacks 3 | . 1 . . . . . . . 1 . 1 Retrieve Components 3 | . 1 . . . . . . . 1 . 1 Scanalyzer 14 | . . . . . 8 . 2 . . . 4 Insert Component 6 | . . . . . 4 . 1 . . . 1 Analyze 8 | . . . . . 4 . 1 . . . 3 Garrison Access Hacks 2 | . . . . . . . . 1 . . 1 Seal Access 2 | . . . . . . . . 1 . . 1 Unauthorized Hacks 1 | . . . . . . . . 1 . . . Terminals 1 | . . . . . . . . 1 . . . Assimilate 1 | . . . . . . . . 1 . . . Fabricators . | . . . . . . . . . . . . Repair Stations . | . . . . . . . . . . . . Recycling Units . | . . . . . . . . . . . . Scanalyzers . | . . . . . . . . . . . . Garrison Access . | . . . . . . . . . . . . Data Cores Recovered 1 | . . . . . . . . 1 . . . Used . | . . . . . . . . . . . . Hacking Detections 34 | . 6 . . . 3 4 8 6 . . 7 Full Trace Events 2 | . . . . . 1 . 1 . . . . Feedback Events . | . . . . . . . . . . . . Feedback Blocked . | . . . . . . . . . . . . Robot Schematics Acquired . | . . . . . . . . . . . . Robots Built . | . . . . . . . . . . . . Authchips . | . . . . . . . . . . . . Time . | . . . . . . . . . . . . Total Robot Build Rating . | . . . . . . . . . . . . Part Schematics Acquired 3 | . . . . . 3 . . . . . . Parts Built . | . . . . . . . . . . . . Authchips . | . . . . . . . . . . . . Time . | . . . . . . . . . . . . Total Part Build Rating . | . . . . . . . . . . . . Parts Repaired 1 | . . . . . . . . 1 . . . Time 62 | . . . . . . . . 62 . . . Parts Recycled . | . . . . . . . . . . . . Recycled Matter . | . . . . . . . . . . . . Retrieved Matter . | . . . . . . . . . . . . Retrieved Components 3 | . . . . . . . . . . . 3 Parts Scanalyzed 5 | . . . . . 4 . 1 . . . . Part Schematics Acquired 3 | . . . . . 3 . . . . . . Parts Damaged 2 | . . . . . 1 . 1 . . . . Bothacking | -11 -10 -10 -10 -9 -8 -7 -6 -5 -4 -4 -3 ------------ Run | Yrd Mat Min Exi Min Mat Fac Fac Fac Fac DSF Res Used RIF Installer . | . . . . . . . . . . . . Robots Hacked 1 | . . . . 1 . . . . . . . Non-combat 1 | . . . . 1 . . . . . . . Combat . | . . . . . . . . . . . . Robot Hacks Applied 1 | . . . . 1 . . . . . . . parse_system 1 | . . . . 1 . . . . . . . Relay Couplers Released 3 | . . . . . . . 3 . . . . Machine Destruction 3 | . . . . . . . 3 . . . . Fabnet Peak Effective % . | . . . . . . . . . . . . Robots Rewired 1 | . . . . . . . 1 . . . . Allies Hacked 1 | . . . . . . . 1 . . . . Hacks Repelled . | . . . . . . . . . . . . Allies | -11 -10 -10 -10 -9 -8 -7 -6 -5 -4 -4 -3 -------- Run | Yrd Mat Min Exi Min Mat Fac Fac Fac Fac DSF Res Total Allies 7 | . . 6 . . . . 1 . . . . Largest Group 4 | . . 4 3 3 2 . 1 . . . . Highest-Rated Group 71 | . . 71 55 55 24 . 32 . . . . Highest-Rated Ally 32 | . . 31 31 31 16 . 32 . . . . Total Orders . | . . . . . . . . . . . . Ally Attacks 61 | . . 21 . 7 11 . 22 . . . . Total Damage 1604 | . . 278 . 103 94 . 1129 . . . . Kills 13 | . . 4 . 2 . . 7 . . . . Allies Corrupted 2 | . . . . . . . 2 . . . . Allies Melted . | . . . . . . . . . . . . Turrets Deployed 3 | . . . . . . . 3 . . . . Intel | -11 -10 -10 -10 -9 -8 -7 -6 -5 -4 -4 -3 ------- Run | Yrd Mat Min Exi Min Mat Fac Fac Fac Fac DSF Res Robot Analysis Total 1 | . 1 . . . . . . . . . . Derelict Logs Recovered 3 | . . 2 . 1 . . . . . . . Drone Launches . | . . . . . . . . . . . . Drone Recoveries . | . . . . . . . . . . . . Exploration | -11 -10 -10 -10 -9 -8 -7 -6 -5 -4 -4 -3 ------------- Run | Yrd Mat Min Exi Min Mat Fac Fac Fac Fac DSF Res Turns Passed 10395 | 52 290 563 457 536 583 832 2798 1252 105 228 2699 Spaces Moved 5366 | 43 191 446 374 281 210 392 1324 701 65 93 1246 Core 197 | 22 . . . . . . . . . . 175 Treads 2622 | . . . . . . . 1107 701 65 93 656 Legs 2392 | 21 191 446 374 281 210 392 217 . . . 260 Wheels . | . . . . . . . . . . . . Hover 155 | . . . . . . . . . . . 155 Flight . | . . . . . . . . . . . . Fastest Speed 50 | 50 120 120 120 120 190 190 160 160 160 160 50 Average Speed 158 | 84 120 120 120 182 190 190 167 160 160 160 159 Slowest Speed 550 | 120 120 120 120 190 190 190 330 240 160 160 550 Overloaded Moves . | . . . . . . . . . . . . Propulsion Burnouts . | . . . . . . . . . . . . Robots Hopped 1 | . . . . . . . 1 . . . . Cave-ins Triggered . | . . . . . . . . . . . . Exploration Rate (%) 45 | 4 51 93 88 69 31 15 40 22 2 88 38 Regions Visited 11 Branch Regions 3 Pre-discovered Areas 2 | . . . 1 1 . . . . . . . Known Exits Taken 6 | . 1 1 1 . . . 1 1 1 . . Unknown Exits Taken 4 | 1 . . . 1 1 1 . . . . . Scrap Searched 1 | . . 1 . . . . . . . . . Spaces Dug 35 | . . . . . 17 . 5 2 . . 11 Terrain Destroyed 247 | . 2 . . . 17 6 107 51 . . 64 Melee 10 | . . . . . . . . 2 . . 8 Projectile 27 | . . . . . . . 18 . . . 9 AOE 210 | . 2 . . . 17 6 89 49 . . 47 Terrain Rammed . | . . . . . . . . . . . . Walls Destroyed . | . . . . . . . . . . . . Machines Disabled . | . . . . . . . . . . . . Actions | -11 -10 -10 -10 -9 -8 -7 -6 -5 -4 -4 -3 --------- Run | Yrd Mat Min Exi Min Mat Fac Fac Fac Fac DSF Res Total 6596 | 56 220 461 383 300 365 448 1634 789 66 139 1735 Wait 457 | . 5 7 3 9 126 22 71 30 . 10 174 Move 5354 | 42 190 445 373 280 209 391 1321 700 65 92 1246 Hop 1 | . . . . . . . 1 . . . . Pick Up 119 | 7 6 1 3 4 5 8 31 13 . 10 31 Fast Attach 48 | 2 . . . . . 1 4 2 . 1 38 Attach 73 | 4 1 . . . 2 3 24 11 1 3 24 Detach 6 | . . . . . 1 . . . . 1 4 Swap 54 | . 1 2 1 4 2 3 16 5 . . 20 Drop 79 | . 1 . 3 1 4 3 19 7 . 6 35 Fire 359 | 1 16 6 . 1 16 17 135 19 . 16 132 Melee 35 | . . . . 1 . . 7 2 . . 25 Ram . | . . . . . . . . . . . . Kick 6 | . . . . . . . . . . . 6 Crush . | . . . . . . . . . . . . Escape Stasis 5 | . . . . . . . 5 . . . . Rewire . | . . . . . . . . . . . . Trap . | . . . . . . . . . . . . Miscellaneous . | . . . . . . . . . . . . Route ------- -11/Scrapyard -10/Materials (discovered 3 exits: *Mat / *Min x2) -10/Mines (discovered 3 exits: *Mat x2 / *Exi) -10/Exiles -9/Mines -8/Materials -7/Factory -6/Factory (discovered 3 exits: *Fac / *Low x2) -5/Factory (discovered 2 exits: *Fac / *Upp) -4/Factory -4/DSF -3/Research History --------- Turn | Location | Event 7 | -11/Scrapyard | Discovered new exit (range 15) 53 | -11/Scrapyard | Entered Materials 196 | -10/Materials | Discovered new exit (range 15) 281 | -10/Materials | Identified exit to Materials 307 | -10/Materials | Build established: Mutant 319 | -10/Materials | Identified exit to Mines 343 | -10/Materials | Entered Mines 351 | -10/Mines | Discovered exit to Materials (range 10) 401 | -10/Mines | Assembled infested the area 610 | -10/Mines | Learned Materials trap positions 611 | -10/Mines | Learned 8 Materials zone layouts 687 | -10/Mines | Discovered exit to Materials (range 9) 717 | -10/Mines | Assisted by bots powering up and referring to "LRC-V3" 727 | -10/Mines | Met a Derelict testing a Signal Generator 900 | -10/Mines | Deemed a non-threat by the Exiles lab entrance 900 | -10/Mines | Discovered new exit (range 5) 905 | -10/Mines | Identified exit to Exiles 906 | -10/Mines | Entered Exiles 906 | -10/Exiles | Accompanied by 3 allies 939 | -10/Exiles | Met 8R-AWN 957 | -10/Exiles | Met EX-HEX 1001 | -10/Exiles | Met EX-BIN 1014 | -10/Exiles | Aligned with FarCom system 1016 | -10/Exiles | Given EX-Vault access code 1064 | -10/Exiles | Opened EX-Vault 1072 | -10/Exiles | Found Deploy-a-Sentry 1074 | -10/Exiles | Found Deploy-a-Sentry 1076 | -10/Exiles | Found Deploy-a-Sentry 1102 | -10/Exiles | Warned to stay clear of 0b10 Research branches 1134 | -10/Exiles | Met EX-DEC 1143 | -10/Exiles | Learned location of Zion (-7) 1191 | -10/Exiles | Visited The Gauntlet 1350 | -10/Exiles | Discovered new exit (range 10) 1359 | -10/Exiles | Identified exit to Mines 1363 | -10/Exiles | Left Exiles lab with Deploy-a-Sentry 1363 | -10/Exiles | Entered Mines 1363 | -9/Mines | Accompanied by 3 allies 1394 | -9/Mines | Met a Derelict who couldn't figure out how to use a Trap Extractor 1395 | -9/Mines | Met a Derelict bent on vengeance 1471 | -9/Mines | Learned location of Storage (-9) 1892 | -9/Mines | Discovered new exit (range 5) 1899 | -9/Mines | Entered Materials 1899 | -8/Materials | Accompanied by 2 allies 1899 | -8/Materials | Evolved 4 slots: Propulsion x2, Utility x2 1901 | -8/Materials | Loaded intel: 29 trap records 2448 | -8/Materials | Discovered new exit (range 16) 2482 | -8/Materials | Entered Factory 2482 | -7/Factory | Evolved 2 slots: Power x1, Utility x1 3274 | -7/Factory | Discovered new exit (range 14) 3314 | -7/Factory | Entered another Factory area 3314 | -6/Factory | Evolved 2 slots: Utility x1, Weapon x1 3498 | -6/Factory | Discovered new exit (range 5) 3643 | -6/Factory | Build established: Skirmisher 3853 | -6/Factory | Cargo convoy interrupted 3855 | -6/Factory | DAS Turret deployed 3860 | -6/Factory | DAS Turret deployed 3867 | -6/Factory | DAS Turret deployed 3876 | -6/Factory | Found Prototype Processor 3877 | -6/Factory | Identified Exp. Signal Interpreter 3896 | -6/Factory | Lost 5 parts (1n1u3w) 3909 | -6/Factory | Found Prototype Launcher 3910 | -6/Factory | Identified Tactical Quantum Warhead 3916 | -6/Factory | Found Prototype Device 3917 | -6/Factory | Identified Exp. Terrain Scanner 5087 | -6/Factory | Garrison activated, responded to threat 5856 | -6/Factory | Lost 3 parts (1u2w) 5981 | -6/Factory | Discovered new exit (range 30) 6098 | -6/Factory | Discovered new exit (range 9) 6099 | -6/Factory | Identified exit to Lower Caves 6111 | -6/Factory | Identified exit to Factory 6112 | -6/Factory | Entered another Factory area 6112 | -5/Factory | Evolved 2 slots: Utility x2 6408 | -5/Factory | Build established: Hacker-Skirmisher 6755 | -5/Factory | Discovered new exit (range 14) 6776 | -5/Factory | Identified exit to Upper Caves 6814 | -5/Factory | Repaired Imp. Heavy Treads 7279 | -5/Factory | Discovered new exit (range 13) 7321 | -5/Factory | Identified exit to Factory 7321 | -5/Factory | Spotted B-75 Beast 7364 | -5/Factory | Entered another Factory area 7364 | -4/Factory | Evolved 2 slots: Propulsion x2 7469 | -4/Factory | Identified exit to DSF 7469 | -4/Factory | Entered DSF 7557 | -4/DSF | Additional patrols routed to DSF 7655 | -4/DSF | Discovered new exit (range 14) 7692 | -4/DSF | Identified exit to Research 7697 | -4/DSF | Entered Research 7697 | -3/Research | Evolved 2 slots: Utility x1, Weapon x1 8527 | -3/Research | Found Gamma Bomb Array 8531 | -3/Research | Found Prototype Device 8531 | -3/Research | Identified Exp. Focal Shield 8671 | -3/Research | Build established: Hacker-Gunner 8832 | -3/Research | Spotted B-86 Titan 9115 | -3/Research | System corruption reached 10% 9163 | -3/Research | Lost 8 parts (1p3n4w) 9625 | -3/Research | Lost 16 parts (2p4n5u5w) 9778 | -3/Research | Build established: Hacker-Mutant 9803 | -3/Research | Core integrity fell below 50% 10120 | -3/Research | Lost 5 parts (1n2u2w) 10290 | -3/Research | Lost 4 parts (2n2w) 10322 | -3/Research | Found Unknown Device 10323 | -3/Research | Identified Quantum Capacitor 10352 | -3/Research | Core integrity fell below 20% 10392 | -3/Research | Lost 10 parts (2p2n3u3w) 10396 | -3/Research | Destroyed by P-80 Master with Gamma Rifle Last Messages --------------- 10355_ Kicked G-67 Veteran out of the way. 10356_ Kicked G-67 Veteran. 10356_ Quantum Capacitor destroyed. 10356_ Critical hit (Blast). 10358_ RNN7GT7IS:FHLY6NG